bitfinex/quotes_ETHUSD_20240819
["timestamp","ask_amount","ask_price","bid_price","bid_amount"]
[1724047462846,2.85842501,2630.1,2629.6,2.4848]
[1724047462847,0.41751438,2630.0,2629.6,2.4848]
[1724047463225,1.36352105,2630.0,2629.6,2.4848]
[1724047463435,0.41751438,2629.9,2629.6,2.4848]
[1724047463664,0.41751438,2629.8,2629.5,2.66206]
[1724047463949,0.41751438,2629.7,2629.5,2.66206]
[1724047464148,0.41751438,2629.6,2629.5,2.66206]
[1724047464512,0.41745762,2629.6,2629.5,2.66206]
[1724047464714,1.1919722,2629.7,2629.5,2.66206]
[1724047465351,0.41744529,2629.6,2629.5,2.66206]
[1724047467259,0.41743831,2629.6,2629.5,2.66206]
[1724047468019,1.1919722,2629.7,2629.5,2.66206]
[1724047468353,1.1919722,2629.7,2629.5,5.32409]
[1724047468666,1.1919722,2629.7,2629.6,2.662]
[1724047468849,1.60942272,2629.7,2629.6,2.662]
[1724047469352,1.1919722,2629.7,2629.6,2.662]
[1724047469553,1.60942432,2629.7,2629.6,2.662]
[1724047469758,1.1919722,2629.7,2629.6,2.662]
[1724047469926,1.60943349,2629.7,2629.6,2.662]
[1724047470254,1.1919722,2629.7,2629.6,2.662]
[1724047470452,1.60943535,2629.7,2629.6,2.662]
[1724047470917,1.1919722,2629.7,2629.6,2.662]
[1724047472380,1.1919722,2629.7,2629.6,5.1091]
[1724047474050,1.1919722,2629.7,2629.6,7.7711]
[1724047476899,1.1919722,2630.0,2629.7,5.085]
[1724047477103,0.41744774,2629.9,2629.8,2.66179]
[1724047478374,1.1919722,2630.0,2629.9,2.66169]
[1724047478565,1.60942108,2630.0,2629.9,2.66169]
[1724047478815,0.41744888,2630.0,2629.9,7.57988]
[1724047478963,1.1919722,2630.2,2630.0,2.2565]
[1724047479159,1.1919722,2630.3,2630.2,2.66139]
[1724047479356,1.60948042,2630.3,2630.2,2.66139]
[1724047480090,0.41750822,2630.3,2630.2,5.08699]
[1724047480403,1.1919722,2630.5,2630.3,2.66129]
[1724047480562,0.41752897,2630.4,2630.3,2.66129]
[1724047480762,1.1919722,2630.5,2630.4,5.08679]
[1724047480962,1.60956279,2630.5,2630.4,5.08679]
[1724047481179,0.41759059,2630.5,2630.4,5.08679]
[1724047482925,1.1919722,2630.6,2630.4,5.08679]
[1724047483081,0.4175556,2630.5,2630.4,5.08679]
[1724047484101,20.9019722,2630.7,2630.4,5.08679]
[1724047484282,0.41755963,2630.6,2630.4,5.08679]
[1724047484488,20.9019722,2630.7,2630.4,5.08679]
[1724047484825,0.4175599,2630.6,2630.4,5.08679]
[1724047485006,20.9019722,2630.7,2630.4,5.08679]
[1724047485172,0.41756529,2630.6,2630.4,5.08679]
[1724047485371,20.9019722,2630.7,2630.4,5.08679]
[1724047485571,0.41756476,2630.6,2630.4,5.08679]
[1724047485880,20.9019722,2630.7,2630.4,5.08679]
[1724047486088,0.41755789,2630.6,2630.4,5.08679]
[1724047486343,1.58929627,2630.8,2630.7,2.66088]
[1724047486344,1.1919722,2630.8,2630.7,2.66088]
[1724047486486,1.60955418,2630.8,2630.7,2.66088]
[1724047486827,0.41758198,2630.8,2630.7,4.92368]
[1724047487022,1.1919722,2630.9,2630.8,2.66078]
[1724047487203,0.41758908,2630.9,2630.8,2.66078]
[1724047487514,1.1919722,2631.0,2630.8,2.66078]
[1724047487672,0.41759176,2630.9,2630.8,2.66078]
[1724047487862,1.60956396,2630.9,2630.6,2.66093]
[1724047488074,1.1919722,2630.9,2630.6,2.66093]
[1724047488298,0.41758666,2630.8,2630.6,5.32185]
[1724047488505,1.1919722,2630.9,2630.6,5.32184]
[1724047488902,1.1919722,2631.0,2630.6,5.32184]
[1724047489205,0.41758584,2630.9,2630.6,5.32184]
[1724047489520,1.1919722,2631.0,2630.6,5.32184]
[1724047489968,1.60956122,2630.9,2630.6,2.66092]
[1724047490183,1.1919722,2631.0,2630.6,2.66092]
[1724047490507,0.41758557,2630.9,2630.6,2.66092]
[1724047490668,1.1919722,2631.0,2630.6,5.32184]
[1724047490872,0.41758548,2630.9,2630.6,5.32184]
[1724047491217,1.1919722,2631.0,2630.6,2.66092]
[1724047491512,1.60955292,2630.9,2630.5,2.4898]
[1724047491711,0.41757512,2630.8,2630.5,2.4898]
[1724047491874,1.1919722,2630.9,2630.5,5.15086]
[1724047492074,0.41758146,2630.8,2630.5,5.15086]
[1724047492408,1.1919722,2630.9,2630.5,5.15086]
[1724047493713,0.41758272,2630.8,2630.5,2.4898]
[1724047493900,2.4929722,2630.8,2630.2,4.95263]
[1724047494215,1.609532,2630.7,2630.2,4.95263]
[1724047494423,1.1919722,2630.7,2630.2,4.95263]
[1724047495629,0.41762061,2630.6,2630.2,4.95263]
[1724047495790,1.1919722,2630.7,2630.3,2.66129]
[1724047496365,1.60952404,2630.6,2630.3,2.66129]
[1724047496476,1.1919722,2630.7,2630.3,2.66129]
[1724047496675,9.27061941,2630.8,2630.3,2.66129]
[1724047496676,1.60951813,2630.6,2630.3,2.66129]
[1724047496877,1.1919722,2630.6,2630.3,2.66129]
[1724047498779,1.1919722,2630.6,2630.3,5.3225]
[1724047498975,1.1919722,2630.6,2630.3,2.66121]
[1724047500791,0.41751749,2630.5,2630.3,2.66121]
[1724047501026,1.1919722,2630.5,2630.2,2.2913]
[1724047501182,1.1919722,2630.6,2630.2,2.2913]
[1724047501615,1.1919722,2630.5,2630.2,2.2913]
[1724047501817,2.91046023,2630.4,2629.8,2.66177]
[1724047502058,2.91046023,2630.4,2629.5,2.2681]
[1724047502059,2.4929722,2630.2,2629.5,4.93014]
[1724047502352,2.4929722,2630.0,2629.5,4.93014]
[1724047502759,0.41742982,2629.9,2629.5,4.93014]
[1724047502963,1.1919722,2629.9,2629.5,4.93014]
[1724047503365,1.1919722,2630.1,2629.6,2.66192]
[1724047503564,1.1919722,2630.1,2629.9,2.66169]
[1724047503726,1.58929627,2630.2,2630.0,2.2772]
[1724047503727,1.1919722,2630.2,2630.0,2.2772]
[1724047503940,1.1919722,2630.3,2630.0,2.2772]
[1724047504132,0.41748408,2630.2,2630.0,2.2772]
[1724047504361,1.1919722,2630.3,2630.0,2.2772]
[1724047504556,2.34290771,2630.4,2630.0,4.93878]
[1724047504557,1.60946067,2630.2,2630.0,4.93878]
[1724047504761,1.1919722,2630.3,2630.0,2.2772]
[1724047505143,0.41748986,2630.2,2630.0,4.93877]
[1724047505348,1.1919722,2630.3,2630.0,4.93877]
[1724047505570,1.1919722,2630.2,2630.0,4.93877]
[1724047505771,1.1919722,2630.3,2630.0,4.93877]
[1724047506651,1.60946745,2630.2,2630.0,2.2772]
[1724047506845,1.1919722,2630.2,2630.0,2.2772]
[1724047507059,1.1919722,2630.2,2630.0,4.93879]
[1724047507259,1.1919722,2630.3,2630.0,4.93879]
[1724047507459,0.4174933,2630.2,2630.0,4.93879]
[1724047507669,1.1919722,2630.3,2630.0,4.93879]
[1724047508583,1.1919722,2630.3,2630.0,2.2772]
[1724047508933,1.60945901,2630.2,2630.0,2.2772]
[1724047509136,1.1919722,2630.2,2630.0,2.2772]
[1724047509739,1.58929627,2630.3,2630.0,4.93877]
[1724047509740,1.1919722,2630.3,2630.0,4.93877]
[1724047509941,1.1919722,2630.4,2630.2,2.3458]
[1724047510371,1.1919722,2630.5,2630.2,2.3458]
[1724047510552,0.41752593,2630.4,2630.2,2.3458]
[1724047510754,1.1919722,2630.5,2630.2,2.3458]
[1724047510978,1.60949604,2630.4,2630.2,5.00716]
[1724047511144,1.1919722,2630.4,2630.2,2.3458]
[1724047511343,0.41751725,2630.3,2630.2,2.3458]
[1724047511538,0.41751725,2630.3,2630.0,2.3975]
[1724047511777,1.1919722,2630.3,2630.0,2.3975]
[1724047511978,1.1919722,2630.4,2630.0,2.3975]
[1724047512153,0.41750874,2630.3,2630.0,2.3975]
[1724047512486,1.1919722,2630.4,2630.0,2.3975]
[1724047512886,0.41748846,2630.3,2630.0,2.3975]
[1724047513189,1.1919722,2630.4,2630.0,2.3975]
[1724047513389,0.41748952,2630.3,2630.0,5.05902]
[1724047513557,1.1919722,2630.4,2630.0,5.05902]
[1724047513761,0.41748838,2630.3,2630.0,5.05902]
[1724047513957,1.1919722,2630.4,2630.1,5.10689]
[1724047514163,0.41748546,2630.3,2630.1,5.10689]
[1724047514488,1.1919722,2630.4,2630.1,5.10683]
[1724047514655,0.41749731,2630.3,2630.1,5.10683]
[1724047514857,1.1919722,2630.4,2630.1,5.10683]
[1724047515051,1.6094658,2630.3,2630.1,5.10683]
[1724047515405,1.6094658,2630.2,2630.1,2.4454]
[1724047515562,1.6094658,2630.2,2629.9,2.4217]
[1724047515906,0.4174936,2630.1,2629.9,2.4217]
[1724047516071,1.1919722,2630.2,2629.9,2.4217]
[1724047516252,0.417499,2630.1,2629.9,2.4217]
[1724047516459,1.1919722,2630.1,2629.9,2.4217]
[1724047516676,1.1919722,2630.2,2629.8,2.66176]
[1724047516875,1.60945013,2630.1,2629.8,2.66176]
[1724047517101,0.41747793,2630.0,2629.8,2.66176]
[1724047517278,0.41747793,2630.0,2629.7,5.14916]
[1724047517279,0.31987464,2630.0,2629.7,2.4873]
[1724047517591,1.1919722,2629.8,2629.5,2.2872]
[1724047517751,1.1919722,2629.9,2629.5,2.2872]
[1724047517952,1.60940788,2629.8,2629.5,2.2872]
[1724047518148,1.1919722,2629.8,2629.5,2.2872]
[1724047518389,0.41743882,2629.7,2629.5,2.2872]
[1724047518549,1.1919722,2629.8,2629.5,2.2872]
[1724047518754,0.41742793,2629.7,2629.5,2.2872]
[1724047519000,1.1919722,2629.8,2629.5,2.2872]
[1724047519502,0.93160281,2629.9,2629.5,2.2872]
[1724047519503,2.12357501,2629.9,2629.5,2.2872]
[1724047519702,0.41743475,2629.8,2629.5,2.2872]
[1724047519905,0.41742328,2629.7,2629.5,4.94927]
[1724047520114,1.1919722,2629.8,2629.5,4.94927]
[1724047520115,1.1919722,2629.8,2629.5,2.2872]
[1724047520324,1.60938852,2629.7,2629.5,2.2872]
[1724047520485,1.1919722,2629.8,2629.5,2.2872]
[1724047520829,1.1919722,2629.6,2629.3,2.2729]
[1724047521009,1.60938766,2629.5,2629.3,2.2729]
[1724047521179,0.41736233,2629.4,2629.1,2.3569]
[1724047521388,1.1919722,2629.4,2629.1,2.3569]
[1724047521786,0.41736107,2629.3,2629.1,2.3569]
[1724047522017,1.1919722,2629.4,2629.1,2.3569]
[1724047522402,1.81977214,2629.5,2629.1,2.3569]
[1724047522894,0.41738559,2629.4,2629.1,2.3569]
[1724047523098,3.8539922,2629.6,2629.1,2.3569]
[1724047523617,1.1919722,2629.7,2629.2,2.487]
[1724047524425,1.1919722,2629.8,2629.3,2.367]
[1724047524734,1.1919722,2629.8,2629.4,2.66215]
[1724047524940,1.1919722,2629.7,2629.3,2.367]
[1724047525136,1.1919722,2629.8,2629.3,5.02924]
[1724047525438,1.60936905,2629.7,2629.3,5.02924]
[1724047525587,1.1919722,2629.7,2629.3,2.367]
[1724047525783,3.90579341,2629.7,2629.3,2.367]
[1724047525984,0.41739307,2629.6,2629.3,2.367]
[1724047526213,3.90579341,2629.7,2629.3,2.367]
[1724047529315,2.71382121,2629.7,2629.3,2.367]
[1724047530316,3.90579341,2629.7,2629.3,2.367]
[1724047530635,4.01582121,2629.7,2629.3,2.367]
[1724047530918,2.4939722,2629.7,2629.3,2.367]
[1724047531721,1.302,2629.7,2629.3,2.367]
[1724047532107,2.4939722,2629.7,2629.3,2.367]
[1724047532317,1.302,2629.7,2629.3,2.367]
[1724047533287,5.1558722,2629.7,2629.3,2.367]
[1724047533500,0.78176822,2629.6,2629.3,2.367]
[1724047534284,3.44376822,2629.6,2629.3,2.367]
[1724047535206,4.63574042,2629.6,2629.3,2.367]
[1724047535431,3.44376822,2629.6,2629.3,2.367]
[1724047535886,0.78176822,2629.6,2629.3,2.367]
[1724047536393,1.97374042,2629.6,2629.3,2.367]
[1724047536715,0.59376504,2629.5,2629.3,2.367]
[1724047537299,1.97374042,2629.6,2629.3,2.367]
[1724047538586,0.78176822,2629.6,2629.3,2.367]
[1724047538803,1.1919722,2629.6,2629.3,2.367]
[1724047539727,1.1919722,2629.6,2629.1,2.3838]
[1724047540026,2.91130503,2629.5,2629.1,2.3838]
[1724047540193,2.4939722,2629.5,2629.1,2.3838]
[1724047540396,1.60929005,2629.4,2629.1,2.3838]
[1724047540605,2.4939722,2629.5,2629.1,2.3838]
[1724047541003,2.4939722,2629.5,2629.1,5.0463]
[1724047541394,2.4939722,2629.5,2629.1,2.3838]
[1724047541594,0.41733673,2629.4,2629.1,2.3838]
[1724047541833,3.37849552,2629.4,2629.1,2.3838]
[1724047542037,4.57046772,2629.4,2629.1,2.3838]
[1724047542857,2.66231,2629.3,2629.1,2.3838]
[1724047543001,5.1562822,2629.3,2628.9,2.4003]
[1724047543208,0.45705477,2629.2,2628.9,2.4003]
[1724047543403,3.11955477,2629.2,2628.9,2.4003]
[1724047544708,2.66252,2629.1,2628.9,2.4003]
[1724047546502,21.35902697,2629.2,2628.9,2.4003]
[1724047546700,22.82952477,2629.2,2628.9,2.4003]
[1724047547119,24.02149697,2629.2,2628.9,2.4003]
[1724047547717,5.45110431,2629.1,2628.9,2.4003]
[1724047547919,5.45110431,2629.1,2628.5,2.3262]
[1724047547920,2.66261,2629.0,2628.5,2.3262]
[1724047554766,1.302,2628.9,2628.5,2.3262]
[1724047556626,27.65507651,2629.1,2628.5,2.3262]
[1724047557329,19.71,2629.0,2628.5,2.3262]
[1724047557973,19.71,2629.0,2628.8,2.3598]
[1724047561667,19.71,2629.0,2628.9,2.66271]
[1724047561866,19.71,2629.0,2628.9,5.11731]
[1724047562312,19.71,2629.0,2628.9,2.4546]
[1724047563189,20.9019722,2629.2,2628.9,5.11731]
[1724047563379,20.9019722,2629.2,2629.0,2.3257]
[1724047565637,1.1919722,2629.1,2629.0,2.3257]
[1724047566055,1.58929627,2629.1,2629.0,2.3257]
[1724047566334,4.56742312,2629.1,2628.7,2.2525]
[1724047566661,1.19097306,2628.9,2628.7,2.2525]
[1724047567588,1.19097306,2629.0,2628.7,4.91539]
[1724047568629,1.19097306,2629.1,2628.7,4.91539]
[1724047568788,1.19097306,2629.0,2628.7,4.91539]
[1724047568994,1.19097306,2629.1,2628.7,4.91539]
[1724047569419,1.19097306,2629.0,2628.7,4.91539]
[1724047569629,1.19097306,2629.1,2628.7,4.91539]
[1724047569839,1.19097306,2629.0,2628.7,4.91539]
[1724047570332,1.19097306,2629.0,2628.7,2.2525]
[1724047571327,1.60820225,2628.9,2628.7,2.2525]
[1724047571535,1.19097306,2628.9,2628.7,2.2525]
[1724047574496,1.19097306,2629.0,2628.7,2.2525]
[1724047574702,1.60823173,2628.9,2628.7,2.2525]
[1724047574944,1.19097306,2629.0,2628.7,2.2525]
[1724047575145,1.60822461,2628.9,2628.7,2.2525]
[1724047575297,1.19097306,2628.9,2628.7,2.2525]
[1724047575500,0.4172493,2628.8,2628.7,2.2525]
[1724047575844,1.60822236,2628.8,2628.7,2.2525]
[1724047576761,1.60822236,2628.8,2628.5,2.3331]
[1724047576762,3.49623622,2628.8,2628.5,2.3331]
[1724047576922,1.19169425,2628.6,2628.5,2.3331]
[1724047577129,1.19169425,2628.6,2628.3,2.3331]
[1724047577130,1.60888915,2628.6,2628.3,2.3331]
[1724047577344,2.91088915,2628.6,2628.3,2.3331]
[1724047577536,1.60888915,2628.5,2628.3,2.3331]
[1724047577842,1.19169425,2628.5,2628.3,2.3331]
[1724047578342,5.15674425,2628.6,2628.3,2.3331]
[1724047578491,0.41722766,2628.5,2628.3,2.3331]
[1724047578692,3.85474425,2628.6,2628.3,2.3331]
[1724047578931,0.41723487,2628.5,2628.3,2.3331]
[1724047579202,3.85474425,2628.6,2628.3,2.3331]
[1724047579402,0.4172414,2628.5,2628.3,2.3331]
[1724047579730,3.85474425,2628.6,2628.3,2.3331]
[1724047579929,0.41725419,2628.5,2628.3,2.3331]
[1724047580151,3.85474425,2628.6,2628.3,2.3331]
[1724047580335,0.4172553,2628.5,2628.3,2.3331]
[1724047580543,1.19169425,2628.5,2628.3,2.3331]
[1724047581447,1.19169425,2628.6,2628.3,2.3331]
[1724047581768,0.41725414,2628.5,2628.3,2.3331]
[1724047581897,1.19169425,2628.6,2628.3,2.3331]
[1724047582098,0.41725565,2628.5,2628.3,2.3331]
[1724047582345,1.19169425,2628.6,2628.3,2.3331]
[1724047582715,1.19169425,2628.6,2628.3,4.99632]
[1724047583030,20.90169425,2628.7,2628.4,2.3981]
[1724047583231,0.41725591,2628.6,2628.4,2.3981]
[1724047583544,1.19169425,2628.6,2628.4,2.3981]
[1724047583853,20.90169425,2628.7,2628.5,2.4399]
[1724047584008,0.41726019,2628.6,2628.5,2.4399]
[1724047584701,1.60895444,2628.6,2628.5,2.4399]
[1724047584867,0.41726019,2628.6,2628.5,2.4399]
[1724047585269,1.60895444,2628.6,2628.5,2.4399]
[1724047585678,1.608958,2628.6,2628.5,2.4399]
[1724047586184,0.41726375,2628.6,2628.5,2.4399]
[1724047586394,1.60982711,2628.6,2628.5,2.4399]
[1724047587369,0.41726375,2628.6,2628.5,2.4399]
[1724047587908,1.61000292,2628.6,2628.5,2.4399]
[1724047588108,1.60999989,2628.6,2628.5,2.4399]
[1724047588474,2.00656002,2628.6,2628.5,2.4399]
[1724047588862,0.41726375,2628.6,2628.5,2.4399]
[1724047589070,1.61013052,2628.6,2628.5,2.4399]
[1724047589379,0.41726375,2628.6,2628.5,2.4399]
[1724047589790,1.19299751,2628.6,2628.5,2.4399]
[1724047589963,0.41733463,2628.6,2628.5,2.4399]
[1724047592201,1.61073966,2628.6,2628.5,2.4399]
[1724047592559,0.41733463,2628.6,2628.5,2.4399]
[1724047592802,2.0066309,2628.6,2628.5,2.4399]
[1724047593003,0.41733463,2628.6,2628.5,2.4399]
[1724047593173,2.0066309,2628.6,2628.5,2.4399]
[1724047593899,0.41733463,2628.6,2628.5,2.4399]
[1724047594104,2.00698629,2628.6,2628.5,2.4399]
[1724047595289,2.53688107,2628.6,2628.3,4.95852]
[1724047595490,1.6118336,2628.5,2628.3,4.95852]
[1724047595695,0.41769002,2628.4,2628.3,2.2953]
[1724047595878,1.6118336,2628.4,2628.3,2.2953]
[1724047596407,0.41769002,2628.4,2628.3,2.2953]
[1724047598304,0.41760235,2628.4,2628.3,2.2953]
[1724047598618,1.19414358,2628.4,2628.3,2.2953]
[1724047598806,1.61173247,2628.4,2628.3,2.2953]
[1724047599168,1.6117401,2628.4,2628.3,2.2953]
[1724047600371,0.41759652,2628.4,2628.3,2.2953]
[1724047600767,0.41759652,2628.4,2628.3,5.720823]
[1724047601075,0.41759652,2628.4,2628.3,8.384133]
[1724047603334,0.41759652,2628.4,2628.3,7.62192]
[1724047603537,0.41759652,2628.4,2628.3,4.95861]
[1724047605123,0.41759652,2628.4,2628.3,2.2953]
[1724047605455,1.6117401,2628.4,2628.3,2.2953]
[1724047605951,1.6117401,2628.4,2628.0,2.66357]
[1724047605952,0.41759652,2628.4,2627.9,5.03251]
[1724047606108,3.23362533,2628.3,2627.9,2.3688]
[1724047606308,1.19383101,2628.1,2627.9,2.3688]
[1724047606515,0.41767591,2628.0,2627.9,2.3688]
[1724047606957,0.41767591,2628.0,2627.9,2.66372]
[1724047607098,0.41767591,2628.0,2627.8,2.66373]
[1724047607300,1.19383101,2628.1,2627.8,2.66373]
[1724047607523,0.41764752,2628.0,2627.9,2.66372]
[1724047607725,1.19383101,2628.2,2627.9,2.4023]
[1724047607900,0.41765463,2628.1,2628.0,2.66359]
[1724047609369,1.61148564,2628.1,2627.9,2.4023]
[1724047609560,1.19383101,2628.2,2627.9,2.4023]
[1724047609834,0.417655,2628.1,2627.9,2.4023]
[1724047610021,1.19383101,2628.2,2627.9,2.4023]
[1724047610223,0.41765541,2628.1,2627.9,2.4023]
[1724047610548,1.19383101,2628.2,2627.9,5.06595]
[1724047610724,0.41766059,2628.1,2628.0,2.2794]
[1724047611035,1.19383101,2628.3,2628.1,2.66352]
[1724047611203,0.41766948,2628.2,2628.1,2.66352]
[1724047612235,0.41766948,2628.2,2628.0,4.94302]
[1724047612435,0.41766948,2628.1,2628.0,4.94302]
[1724047614032,1.19383101,2628.3,2628.0,4.94302]
[1724047614033,1.19383101,2628.3,2628.0,7.60658]
[1724047614250,0.41767051,2628.2,2628.1,2.66352]
[1724047614797,1.19383101,2628.3,2628.1,2.66352]
[1724047614980,0.41766652,2628.2,2628.1,2.66352]
[1724047615153,0.41766652,2628.2,2628.0,4.94296]
[1724047615353,1.61149753,2628.1,2628.0,2.66356]
[1724047615561,1.71966652,2628.1,2627.8,2.4851]
[1724047615750,2.49583101,2627.9,2627.6,5.14905]
[1724047616061,1.61149753,2627.8,2627.6,5.14905]
[1724047616372,1.302,2627.9,2627.6,5.14905]
[1724047616373,1.19383101,2627.9,2627.6,5.14905]
[1724047616544,0.41760751,2627.8,2627.6,5.14905]
[1724047616891,1.19383101,2627.9,2627.6,5.14905]
[1724047617182,0.41755223,2627.8,2627.6,5.14905]
[1724047617483,1.60234374,2627.9,2627.6,5.14905]
[1724047617639,0.4175519,2627.8,2627.6,5.14905]
[1724047617840,1.19383101,2628.0,2627.7,2.66392]
[1724047618068,1.19383101,2628.0,2627.8,2.66382]
[1724047618268,0.41755834,2627.9,2627.8,2.66382]
[1724047618755,0.41755834,2627.9,2627.8,9.877827]
[1724047618959,27.0,2628.2,2628.1,7.79394]
[1724047620982,1.58929627,2628.5,2628.4,2.66321]
[1724047620983,1.19383101,2628.5,2628.4,2.66321]
[1724047621185,1.6114897,2628.5,2628.4,2.66321]
[1724047621768,1.19383101,2628.5,2628.4,2.66321]
[1724047622019,1.61149304,2628.5,2628.4,2.66321]
[1724047622575,1.61149402,2628.5,2628.4,2.66321]
[1724047623956,1.61149402,2628.5,2628.4,4.93211]
[1724047624272,1.19383101,2628.5,2628.4,4.93211]
[1724047624450,1.61169102,2628.5,2628.4,4.93211]
[1724047625083,1.61169102,2628.5,2628.4,2.2689]
[1724047626229,1.61169102,2628.5,2628.4,4.93211]
[1724047626351,1.61167812,2628.5,2628.4,4.93211]
[1724047626759,1.61167812,2628.5,2628.3,2.66325]
[1724047627068,1.61167812,2628.5,2628.2,2.4801]
[1724047627069,1.61167812,2628.4,2628.2,2.4801]
[1724047627271,1.61167812,2628.3,2628.1,2.66345]
[1724047627465,1.19383101,2628.4,2628.1,2.66345]
[1724047627678,0.41775675,2628.3,2628.1,2.66345]
[1724047627873,1.19383101,2628.4,2628.1,2.66345]
[1724047628076,0.41775616,2628.3,2628.1,2.66345]
[1724047628275,1.19383101,2628.3,2628.1,2.66345]
[1724047628470,1.19383101,2628.3,2628.0,2.3573]
[1724047628471,0.4177653,2628.2,2628.0,2.3573]
[1724047628697,0.4177653,2628.2,2627.9,2.66364]
[1724047628698,0.4177653,2628.1,2627.9,2.66364]
[1724047628858,1.19383101,2628.2,2627.9,2.66364]
[1724047629058,1.19383101,2628.2,2627.2,0.79763618]
[1724047629059,4.1454374,2628.1,2627.4,2.3724]
[1724047629262,1.19383101,2627.8,2627.4,2.3724]
[1724047629541,1.19383101,2627.8,2627.2,2.4561]
[1724047629542,2.91356841,2627.7,2627.2,2.4561]
[1724047629787,1.19383101,2627.4,2627.1,2.66448]
[1724047629984,0.4177374,2627.3,2626.9,7.78544]
[1724047630276,1.302,2627.3,2626.9,7.78541]
[1724047630574,1.64411748,2627.4,2627.0,2.66462]
[1724047630904,1.64411748,2627.4,2627.1,2.66453]
[1724047630905,0.41760667,2627.3,2627.1,2.66453]
[1724047631192,1.19383101,2627.5,2627.1,5.32899]
[1724047631398,0.41761722,2627.4,2627.1,2.66446]
[1724047631600,1.93930046,2627.5,2627.1,2.66446]
[1724047631994,0.41759179,2627.4,2627.1,2.66446]
[1724047632164,0.74546945,2627.5,2627.1,2.66446]
[1724047632807,1.93930046,2627.5,2627.1,2.66446]
[1724047632960,2.3783,2627.3,2626.3,2.3063]
[1724047633164,2.3783,2627.3,2626.4,2.66517]
[1724047633165,1.61133102,2627.2,2626.4,2.66517]
[1724047633468,1.19383101,2626.9,2626.4,2.66517]
[1724047633813,0.41746386,2626.8,2626.3,2.3063]
[1724047633964,3.85867101,2626.8,2626.3,2.3063]
[1724047634311,2.66484,2626.8,2626.3,2.3063]
[1724047635399,5.32977,2626.8,2626.2,2.66537]
[1724047635607,0.44452047,2626.7,2626.1,2.66548]
[1724047636510,0.44452047,2626.7,2626.2,2.66544]
[1724047637001,0.54929605,2626.6,2626.2,2.66544]
[1724047637240,0.54929605,2626.6,2625.2,3.131]
[1724047637241,2.66551,2626.2,2625.5,2.66614]
[1724047637737,2.66556,2626.1,2625.5,2.66614]
[1724047638040,2.66556,2626.1,2625.3,2.416528]
[1724047638240,2.66588,2625.8,2625.3,2.416528]
[1724047639733,5.12812,2626.0,2625.3,2.416528]
[1724047639946,2.3904,2626.3,2625.3,2.416528]
[1724047640177,3.0,2626.3,2625.6,2.66605]
[1724047640440,2.82314,2626.2,2625.6,2.66605]
[1724047640943,2.82314,2626.2,2625.7,2.66594]
[1724047641556,19.71,2626.4,2625.9,2.66568]
[1724047641737,6.10949047,2626.7,2626.0,2.66558]
[1724047641738,0.44452047,2626.7,2626.0,2.66558]
[1724047642074,2.66495,2626.7,2626.0,2.66558]
[1724047642641,9.72795217,2626.9,2625.8,2.66581]
[1724047642642,2.66527,2626.4,2625.8,2.66581]
[1724047642804,0.266527,2626.3,2625.8,2.66581]
[1724047643451,2.931877,2626.3,2625.6,4.95298]
[1724047643949,2.931877,2626.3,2625.7,2.66594]
[1724047644103,0.2931877,2626.2,2625.7,2.66594]
[1724047644309,0.2931877,2626.2,2625.8,2.66585]
[1724047644606,0.266527,2626.3,2625.8,2.66585]
[1724047645033,0.02455217,2626.5,2626.0,2.66561]
[1724047646557,19.71,2626.4,2626.0,2.66561]
[1724047648546,19.71,2626.4,2626.0,2.66557]
[1724047649043,19.71,2626.4,2625.8,2.66582]
[1724047649250,19.71,2626.4,2626.0,2.66558]
[1724047649251,1.971,2626.3,2626.0,2.66558]
[1724047649404,1.971,2626.3,2625.8,2.66582]
[1724047649605,1.971,2626.3,2626.0,2.66558]
[1724047650242,1.971,2626.3,2626.0,5.33115]
[1724047650546,1.971,2626.3,2626.0,2.66557]
[1724047650743,19.71,2626.4,2625.6,2.287]
[1724047651043,19.71,2626.4,2626.2,2.66538]
[1724047651218,22.71,2626.6,2626.2,2.66538]
[1724047651419,2.271,2626.5,2626.2,2.66538]
[1724047651719,19.71,2626.6,2626.3,2.66534]
[1724047652048,19.71,2626.6,2626.1,2.3027]
[1724047652049,7.29,2626.9,2626.6,2.66503]
[1724047654808,7.29,2626.9,2626.6,2.66497]
[1724047655035,19.71,2627.0,2626.6,2.66497]
[1724047655228,19.71,2627.2,2626.6,2.66497]
[1724047655430,3.266436,2627.1,2626.6,2.66497]
[1724047655644,3.266436,2627.1,2626.6,2.66496]
[1724047656308,19.71,2627.2,2626.9,2.66472]
[1724047656709,19.71,2627.3,2627.1,2.295]
[1724047656940,19.71,2627.3,2627.0,2.66461]
[1724047658221,19.71,2627.3,2626.8,2.66475]
[1724047658421,1.971,2627.2,2626.9,2.66471]
[1724047659687,1.971,2627.2,2626.8,5.32951]
[1724047660080,1.971,2627.2,2626.9,2.66473]
[1724047660398,2.1681,2627.1,2626.8,2.66475]
[1724047660567,2.1681,2627.1,2626.7,2.295]
[1724047660778,2.1681,2627.1,2626.6,2.66496]
[1724047660986,0.21681,2627.0,2626.6,2.66496]
[1724047661314,19.92681,2627.0,2626.6,2.66496]
[1724047661889,19.92681,2627.0,2626.5,2.4766]
[1724047662112,19.92681,2627.0,2626.4,2.66516]
[1724047663308,19.92681,2627.0,2626.4,5.33033]
[1724047663595,2.20052811,2626.9,2626.4,5.33033]
[1724047664262,2.20052811,2626.9,2626.4,2.66516]
[1724047667342,21.91052811,2626.9,2626.4,2.66516]
[1724047667541,24.57527811,2626.9,2626.4,2.66516]
[1724047667849,21.91052811,2626.9,2626.4,2.66516]
[1724047668034,21.91052811,2626.9,2626.5,2.66506]
[1724047668035,2.1681,2626.8,2626.5,2.66506]
[1724047668204,2.1681,2626.8,2626.4,2.66516]
[1724047668552,2.1681,2626.8,2626.2,7.61777]
[1724047668850,2.66479,2626.9,2626.3,2.66531]
[1724047669145,19.71,2627.0,2626.6,2.66497]
[1724047669327,21.681,2627.0,2626.6,2.66497]
[1724047669844,21.681,2627.0,2626.8,2.66481]